fUST/lending_fUST_20260523
["ID","MTS","AMOUNT","RATE_DAILY","PERIOD"]
[422848949,1779522648000,-160.0,9.036e-05,2]
[422848963,1779522648000,-454.47683566,9.041e-05,2]
[422848977,1779522648000,-500.0,9.041e-05,2]
[422848947,1779522648000,-255.020267,9.036e-05,2]
[422848952,1779522648000,-1173.426707,9.036e-05,2]
[422848948,1779522648000,-350.040534,9.036e-05,2]
[422848862,1779522648000,-2034.71,8.767e-05,2]
[422848988,1779522648000,-550.5,9.041e-05,2]
[422848944,1779522648000,-239.418867,9.036e-05,2]
[422848946,1779522648000,-160.0,9.036e-05,2]
[422848990,1779522648000,-500.0,9.041e-05,2]
[422848874,1779522648000,-4349.05,8.767e-05,2]
[422849004,1779522648000,-500.0,9.041e-05,2]
[422848875,1779522648000,-500.0,8.767e-05,2]
[422848877,1779522648000,-1491.3,8.767e-05,2]
[422848882,1779522648000,-156.587,8.864e-05,2]
[422848878,1779522648000,-2740.95,8.767e-05,2]
[422848854,1779522648000,-500.0,8.767e-05,2]
[422848884,1779522648000,-456.6813334,8.877e-05,2]
[422848898,1779522648000,-8549.84507,8.946e-05,2]
[422848914,1779522648000,-703.482301,8.991e-05,2]
[422848899,1779522648000,-160.0,8.946e-05,2]
[422848908,1779522648000,-2656.590583,8.987e-05,2]
[422848924,1779522648000,-1599.873411,8.991e-05,2]
[422849006,1779522648000,-500.0,9.041e-05,2]
[422848956,1779522648000,-623.93,9.041e-05,2]
[422848966,1779522648000,-500.0,9.041e-05,2]
[422849003,1779522648000,-1159.16,9.041e-05,2]
[422848998,1779522648000,-500.0,9.041e-05,2]
[422848974,1779522648000,-805.78,9.041e-05,2]
[422848994,1779522648000,-314.67084383,9.041e-05,2]
[422848960,1779522648000,-656.2399,9.041e-05,2]
[422848905,1779522648000,-327.15,8.987e-05,2]
[422848900,1779522648000,-3039.353672,8.946e-05,2]
[422848867,1779522648000,-53596.31,8.767e-05,2]
[422848932,1779522648000,-663.40141604,9e-05,2]
[422848922,1779522648000,-3245.9536,8.991e-05,2]
[422848918,1779522648000,-2424.119138,8.991e-05,2]
[422849141,1779522649000,-500.0,9.041e-05,2]
[422849100,1779522649000,-588.33,9.041e-05,2]
[422849082,1779522649000,-627.4,9.041e-05,2]
[422849052,1779522649000,-500.0,9.041e-05,2]
[422849145,1779522649000,-500.0,9.041e-05,2]
[422849088,1779522649000,-603.47,9.041e-05,2]
[422849132,1779522649000,-500.0,9.041e-05,2]
[422849076,1779522649000,-583.52,9.041e-05,2]
[422849045,1779522649000,-1873.78,9.041e-05,2]
[422849133,1779522649000,-7319.6,9.041e-05,2]
[422849106,1779522649000,-500.0,9.041e-05,2]
[422849117,1779522649000,-568.59,9.041e-05,2]
[422849084,1779522649000,-1170.48,9.041e-05,2]
[422849109,1779522649000,-2784.25,9.041e-05,2]
[422849023,1779522649000,-760.63,9.041e-05,2]
[422849126,1779522649000,-1342.2,9.041e-05,2]
[422849130,1779522649000,-500.0,9.041e-05,2]
[422849131,1779522649000,-500.0,9.041e-05,2]
[422849134,1779522649000,-5006.38,9.041e-05,2]
[422849150,1779522649000,-500.0,9.041e-05,2]
[422849112,1779522649000,-1317.26,9.041e-05,2]
[422849039,1779522649000,-500.0,9.041e-05,2]
[422849055,1779522649000,-930.87,9.041e-05,2]
[422849068,1779522649000,-3771.01,9.041e-05,2]
[422849078,1779522649000,-500.0,9.041e-05,2]
[422849090,1779522649000,-500.0,9.041e-05,2]
[422849136,1779522649000,-2370.66,9.041e-05,2]
[422849111,1779522649000,-2673.23,9.041e-05,2]
[422849092,1779522649000,-500.0,9.041e-05,2]
[422849101,1779522649000,-500.0,9.041e-05,2]
[422849102,1779522649000,-333.69056616,9.041e-05,2]
[422849037,1779522649000,-1188.89,9.041e-05,2]
[422849031,1779522649000,-1479.12,9.041e-05,2]
[422849025,1779522649000,-549.31,9.041e-05,2]
[422849075,1779522649000,-773.34,9.041e-05,2]
[422849152,1779522649000,-762.05,9.041e-05,2]
[422849008,1779522649000,-1237.95,9.041e-05,2]
[422849044,1779522649000,-924.25,9.041e-05,2]
[422849065,1779522649000,-500.0,9.041e-05,2]
[422849063,1779522649000,-500.0,9.041e-05,2]
[422849139,1779522649000,-1906.95,9.041e-05,2]
[422849149,1779522649000,-647.49,9.041e-05,2]
[422849016,1779522649000,-500.0,9.041e-05,2]
[422849012,1779522649000,-500.0,9.041e-05,2]
[422849107,1779522649000,-500.0,9.041e-05,2]
[422849059,1779522649000,-500.0,9.041e-05,2]
[422849083,1779522649000,-500.0,9.041e-05,2]
[422849096,1779522649000,-500.0,9.041e-05,2]
[422849114,1779522649000,-500.0,9.041e-05,2]
[422849148,1779522649000,-500.0,9.041e-05,2]
[422849147,1779522649000,-244.38715583,9.041e-05,2]
[422849017,1779522649000,-670.18,9.041e-05,2]
[422849051,1779522649000,-2455.94,9.041e-05,2]
[422849057,1779522649000,-3836.07,9.041e-05,2]
[422849071,1779522649000,-553.08,9.041e-05,2]
[422849069,1779522649000,-1044.87,9.041e-05,2]
[422849064,1779522649000,-500.0,9.041e-05,2]
[422849094,1779522649000,-1062.93,9.041e-05,2]
[422849095,1779522649000,-500.0,9.041e-05,2]
[422849060,1779522649000,-500.0,9.041e-05,2]
[422849070,1779522649000,-500.0,9.041e-05,2]
[422849104,1779522649000,-500.0,9.041e-05,2]
[422849110,1779522649000,-825.75,9.041e-05,2]
[422849077,1779522649000,-500.0,9.041e-05,2]
[422849122,1779522649000,-500.0,9.041e-05,2]
[422849138,1779522649000,-950.0,9.041e-05,2]
[422849142,1779522649000,-500.0,9.041e-05,2]
[422849143,1779522649000,-919.44,9.041e-05,2]
[422849041,1779522649000,-1397.34,9.041e-05,2]
[422849072,1779522649000,-848.75,9.041e-05,2]
[422849062,1779522649000,-500.0,9.041e-05,2]
[422849119,1779522649000,-500.0,9.041e-05,2]
[422849018,1779522649000,-1659.56,9.041e-05,2]
[422849047,1779522649000,-500.0,9.041e-05,2]
[422849053,1779522649000,-500.0,9.041e-05,2]
[422849073,1779522649000,-1941.31,9.041e-05,2]
[422849067,1779522649000,-500.0,9.041e-05,2]
[422849093,1779522649000,-601.61,9.041e-05,2]
[422849020,1779522649000,-500.0,9.041e-05,2]
[422849019,1779522649000,-500.0,9.041e-05,2]
[422849034,1779522649000,-503.670773,9.041e-05,2]
[422849038,1779522649000,-500.0,9.041e-05,2]
[422849050,1779522649000,-500.0,9.041e-05,2]
[422849081,1779522649000,-880.84,9.041e-05,2]
[422849011,1779522649000,-500.0,9.041e-05,2]
[422849014,1779522649000,-355.17016509,9.041e-05,2]
[422849036,1779522649000,-511.26,9.041e-05,2]
[422849040,1779522649000,-500.0,9.041e-05,2]
[422849049,1779522649000,-500.0,9.041e-05,2]
[422849120,1779522649000,-516.78,9.041e-05,2]
[422849085,1779522649000,-936.85,9.041e-05,2]
[422849144,1779522649000,-500.0,9.041e-05,2]
[422849029,1779522649000,-500.0,9.041e-05,2]
[422849113,1779522649000,-500.0,9.041e-05,2]
[422849146,1779522649000,-642.13,9.041e-05,2]
[422849009,1779522649000,-500.0,9.041e-05,2]
[422849042,1779522649000,-623.15202954,9.041e-05,2]
[422849066,1779522649000,-500.0,9.041e-05,2]
[422849010,1779522649000,-500.0,9.041e-05,2]
[422849079,1779522649000,-700.31,9.041e-05,2]
[422849086,1779522649000,-500.0,9.041e-05,2]
[422849091,1779522649000,-2347.77,9.041e-05,2]
[422849089,1779522649000,-549.99,9.041e-05,2]
[422849103,1779522649000,-500.0,9.041e-05,2]
[422849118,1779522649000,-2184.12,9.041e-05,2]
[422849124,1779522649000,-1096.02,9.041e-05,2]
[422849137,1779522649000,-500.0,9.041e-05,2]
[422849140,1779522649000,-3822.56,9.041e-05,2]
[422849015,1779522649000,-551.16,9.041e-05,2]
[422849074,1779522649000,-500.0,9.041e-05,2]
[422849027,1779522649000,-1624.28,9.041e-05,2]
[422849033,1779522649000,-684.52,9.041e-05,2]
[422849135,1779522649000,-500.0,9.041e-05,2]
[422849097,1779522649000,-532.29,9.041e-05,2]
[422849098,1779522649000,-500.0,9.041e-05,2]
[422849021,1779522649000,-500.0,9.041e-05,2]
[422849151,1779522649000,-1534.57,9.041e-05,2]
[422849105,1779522649000,-823.17,9.041e-05,2]
[422849115,1779522649000,-500.0,9.041e-05,2]
[422849099,1779522649000,-500.0,9.041e-05,2]
[422849087,1779522649000,-903.24,9.041e-05,2]
[422849080,1779522649000,-500.0,9.041e-05,2]
[422849128,1779522649000,-725.61,9.041e-05,2]
[422849061,1779522649000,-1062.36,9.041e-05,2]
[422849181,1779522650000,-11343.66,9.041e-05,2]
[422849203,1779522650000,-8529.45,9.041e-05,2]
[422849157,1779522650000,-3632.74,9.041e-05,2]
[422849160,1779522650000,-500.0,9.041e-05,2]
[422849168,1779522650000,-2296.31,9.041e-05,2]
[422849205,1779522650000,-500.0,9.041e-05,2]
[422849164,1779522650000,-3803.04,9.041e-05,2]
[422849175,1779522650000,-3408.86,9.041e-05,2]
[422849172,1779522650000,-7788.78,9.041e-05,2]
[422849165,1779522650000,-500.0,9.041e-05,2]
[422849161,1779522650000,-1016.89,9.041e-05,2]
[422849194,1779522650000,-500.0,9.041e-05,2]
[422849180,1779522650000,-500.0,9.041e-05,2]
[422849178,1779522650000,-836.05,9.041e-05,2]
[422849174,1779522650000,-3810.6,9.041e-05,2]
[422849171,1779522650000,-617.86,9.041e-05,2]
[422849162,1779522650000,-500.0,9.041e-05,2]
[422849153,1779522650000,-500.0,9.041e-05,2]
[422849186,1779522650000,-500.0,9.041e-05,2]
[422849177,1779522650000,-894.62,9.041e-05,2]
[422849154,1779522650000,-500.0,9.041e-05,2]
[422849169,1779522650000,-500.0,9.041e-05,2]
[422849199,1779522650000,-3166.04,9.041e-05,2]
[422849190,1779522650000,-500.0,9.041e-05,2]
[422849195,1779522650000,-1573.6,9.041e-05,2]
[422849193,1779522650000,-500.0,9.041e-05,2]
[422849176,1779522650000,-500.0,9.041e-05,2]
[422849189,1779522650000,-4054.65,9.041e-05,2]
[422849182,1779522650000,-500.0,9.041e-05,2]
[422849170,1779522650000,-1889.65,9.041e-05,2]
[422849158,1779522650000,-11669.11,9.041e-05,2]
[422849202,1779522650000,-698.28,9.041e-05,2]
[422849201,1779522650000,-2034.71,9.041e-05,2]
[422849185,1779522650000,-500.0,9.041e-05,2]
[422849204,1779522650000,-500.0,9.041e-05,2]
[422849187,1779522650000,-8299.03,9.041e-05,2]
[422849184,1779522650000,-500.0,9.041e-05,2]
[422849167,1779522650000,-3777.66,9.041e-05,2]
[422849179,1779522650000,-500.0,9.041e-05,2]
[422849191,1779522650000,-500.0,9.041e-05,2]
[422849200,1779522650000,-560.81,9.041e-05,2]
[422849173,1779522650000,-1214.59,9.041e-05,2]
[422849197,1779522650000,-4331.31,9.041e-05,2]
[422849163,1779522650000,-2635.18,9.041e-05,2]
[422849159,1779522650000,-1407.6,9.041e-05,2]
[422849196,1779522650000,-500.0,9.041e-05,2]
[422849183,1779522650000,-4472.53,9.041e-05,2]
[422849166,1779522650000,-548.8183829,9.041e-05,2]
[422849155,1779522650000,-1298.03,9.041e-05,2]
[422849206,1779522650000,-53596.31,9.041e-05,2]
[422849290,1779522651000,-760.63,9.315e-05,2]
[422849284,1779522651000,-500.0,9.315e-05,2]
[422849341,1779522651000,-603.47,9.315e-05,2]
[422849313,1779522651000,-500.0,9.315e-05,2]
[422849329,1779522651000,-583.52,9.315e-05,2]
[422849325,1779522651000,-848.75,9.315e-05,2]
[422849282,1779522651000,-500.0,9.315e-05,2]
[422849288,1779522651000,-500.0,9.315e-05,2]
[422849334,1779522651000,-880.84,9.315e-05,2]
[422849315,1779522651000,-500.0,9.315e-05,2]
[422849311,1779522651000,-3836.07,9.315e-05,2]
[422849338,1779522651000,-936.85,9.315e-05,2]
[422849342,1779522651000,-549.99,9.315e-05,2]
[422849347,1779522651000,-1062.93,9.315e-05,2]
[422849353,1779522651000,-588.33,9.315e-05,2]
[422849355,1779522651000,-500.0,9.315e-05,2]
[422849357,1779522651000,-823.17,9.315e-05,2]
[422849271,1779522651000,-1019.6,9.315e-05,2]
[422849294,1779522651000,-1479.12,9.315e-05,2]
[422849298,1779522651000,-500.0,9.315e-05,2]
[422849278,1779522651000,-1237.95,9.315e-05,2]
[422849337,1779522651000,-1170.48,9.315e-05,2]
[422849322,1779522651000,-1044.87,9.315e-05,2]
[422849270,1779522651000,-500.0,9.315e-05,2]
[422849276,1779522651000,-500.0,9.315e-05,2]
[422849344,1779522651000,-2347.77,9.315e-05,2]
[422849359,1779522651000,-500.0,9.315e-05,2]
[422849274,1779522651000,-1159.16,9.315e-05,2]
[422849275,1779522651000,-500.0,9.315e-05,2]
[422849280,1779522651000,-500.0,9.315e-05,2]
[422849289,1779522651000,-500.0,9.315e-05,2]
[422849343,1779522651000,-500.0,9.315e-05,2]
[422849257,1779522651000,-500.0,9.315e-05,2]
[422849268,1779522651000,-500.0,9.315e-05,2]
[422849309,1779522651000,-500.0,9.315e-05,2]
[422849318,1779522651000,-500.0,9.315e-05,2]
[422849269,1779522651000,-500.0,9.315e-05,2]
[422849328,1779522651000,-773.34,9.315e-05,2]
[422849330,1779522651000,-500.0,9.315e-05,2]
[422849331,1779522651000,-500.0,9.315e-05,2]
[422849316,1779522651000,-500.0,9.315e-05,2]
[422849340,1779522651000,-903.24,9.315e-05,2]
[422849262,1779522651000,-1669.62,9.315e-05,2]
[422849281,1779522651000,-500.0,9.315e-05,2]
[422849317,1779522651000,-500.0,9.315e-05,2]
[422849321,1779522651000,-3771.01,9.315e-05,2]
[422849266,1779522651000,-500.0,9.315e-05,2]
[422849303,1779522651000,-1873.78,9.315e-05,2]
[422849324,1779522651000,-553.08,9.315e-05,2]
[422849258,1779522651000,-546.66,9.315e-05,2]
[422849336,1779522651000,-500.0,9.315e-05,2]
[422849285,1779522651000,-670.18,9.315e-05,2]
[422849296,1779522651000,-511.26,9.315e-05,2]
[422849302,1779522651000,-924.25,9.315e-05,2]
[422849301,1779522651000,-1397.34,9.315e-05,2]
[422849323,1779522651000,-500.0,9.315e-05,2]
[422849326,1779522651000,-1941.31,9.315e-05,2]
[422849272,1779522651000,-531.93,9.315e-05,2]
[422849283,1779522651000,-551.16,9.315e-05,2]
[422849286,1779522651000,-1659.56,9.315e-05,2]
[422849292,1779522651000,-1624.28,9.315e-05,2]
[422849295,1779522651000,-684.52,9.315e-05,2]
[422849307,1779522651000,-2455.94,9.315e-05,2]
[422849327,1779522651000,-500.0,9.315e-05,2]
[422849348,1779522651000,-500.0,9.315e-05,2]
[422849358,1779522651000,-500.0,9.315e-05,2]
[422849260,1779522651000,-619.36161119,9.315e-05,2]
[422849263,1779522651000,-521.99,9.315e-05,2]
[422849304,1779522651000,-500.0,9.315e-05,2]
[422849354,1779522651000,-500.0,9.315e-05,2]
[422849279,1779522651000,-500.0,9.315e-05,2]
[422849299,1779522651000,-500.0,9.315e-05,2]
[422849305,1779522651000,-500.0,9.315e-05,2]
[422849308,1779522651000,-500.0,9.315e-05,2]
[422849277,1779522651000,-500.0,9.315e-05,2]
[422849291,1779522651000,-549.31,9.315e-05,2]
[422849265,1779522651000,-550.5,9.315e-05,2]
[422849312,1779522651000,-500.0,9.315e-05,2]
[422849349,1779522651000,-500.0,9.315e-05,2]
[422849351,1779522651000,-500.0,9.315e-05,2]
[422849297,1779522651000,-1188.89,9.315e-05,2]
[422849352,1779522651000,-500.0,9.315e-05,2]
[422849273,1779522651000,-500.0,9.315e-05,2]
[422849287,1779522651000,-500.0,9.315e-05,2]
[422849300,1779522651000,-500.0,9.315e-05,2]
[422849339,1779522651000,-500.0,9.315e-05,2]
[422849259,1779522651000,-805.78,9.315e-05,2]
[422849261,1779522651000,-521.15,9.315e-05,2]
[422849264,1779522651000,-500.0,9.315e-05,2]
[422849267,1779522651000,-973.74,9.315e-05,2]
[422849293,1779522651000,-500.0,9.315e-05,2]
[422849350,1779522651000,-532.29,9.315e-05,2]
[422849306,1779522651000,-500.0,9.315e-05,2]
[422849335,1779522651000,-627.4,9.315e-05,2]
[422849320,1779522651000,-500.0,9.315e-05,2]
[422849319,1779522651000,-500.0,9.315e-05,2]
[422849356,1779522651000,-500.0,9.315e-05,2]
[422849346,1779522651000,-601.61,9.315e-05,2]
[422849345,1779522651000,-500.0,9.315e-05,2]
[422849332,1779522651000,-700.31,9.315e-05,2]
[422849314,1779522651000,-1062.36,9.315e-05,2]
[422849310,1779522651000,-930.87,9.315e-05,2]
[422849333,1779522651000,-500.0,9.315e-05,2]
[422849473,1779522652000,-781.87688653,9.431e-05,2]
[422849461,1779522652000,-2437.434158,9.354e-05,2]
[422849412,1779522652000,-617.86,9.315e-05,2]
[422849447,1779522652000,-500.0,9.315e-05,2]
[422849451,1779522652000,-1014.97,9.315e-05,2]
[422849382,1779522652000,-500.0,9.315e-05,2]
[422849394,1779522652000,-762.05,9.315e-05,2]
[422849407,1779522652000,-500.0,9.315e-05,2]
[422849427,1779522652000,-500.0,9.315e-05,2]
[422849450,1779522652000,-500.0,9.315e-05,2]
[422849454,1779522652000,-500.0,9.315e-05,2]
[422849385,1779522652000,-3822.56,9.315e-05,2]
[422849423,1779522652000,-500.0,9.315e-05,2]
[422849396,1779522652000,-500.0,9.315e-05,2]
[422849403,1779522652000,-1016.89,9.315e-05,2]
[422849431,1779522652000,-500.0,9.315e-05,2]
[422849469,1779522652000,-927.92799,9.401e-05,2]
[422849474,1779522652000,-309.37679733,9.441e-05,30]
[422849381,1779522652000,-2370.66,9.315e-05,2]
[422849383,1779522652000,-950.0,9.315e-05,2]
[422849393,1779522652000,-1534.57,9.315e-05,2]
[422849395,1779522652000,-500.0,9.315e-05,2]
[422849401,1779522652000,-1407.6,9.315e-05,2]
[422849405,1779522652000,-2635.18,9.315e-05,2]
[422849414,1779522652000,-1214.59,9.315e-05,2]
[422849392,1779522652000,-500.0,9.315e-05,2]
[422849415,1779522652000,-3810.6,9.315e-05,2]
[422849376,1779522652000,-500.0,9.315e-05,2]
[422849438,1779522652000,-500.0,9.315e-05,2]
[422849360,1779522652000,-2784.25,9.315e-05,2]
[422849366,1779522652000,-568.59,9.315e-05,2]
[422849372,1779522652000,-1096.02,9.315e-05,2]
[422849430,1779522652000,-500.0,9.315e-05,2]
[422849364,1779522652000,-500.0,9.315e-05,2]
[422849377,1779522652000,-500.0,9.315e-05,2]
[422849375,1779522652000,-500.0,9.315e-05,2]
[422849361,1779522652000,-825.75,9.315e-05,2]
[422849374,1779522652000,-725.61,9.315e-05,2]
[422849378,1779522652000,-7319.6,9.315e-05,2]
[422849367,1779522652000,-500.0,9.315e-05,2]
[422849368,1779522652000,-2184.12,9.315e-05,2]
[422849398,1779522652000,-592.52,9.315e-05,2]
[422849362,1779522652000,-2673.23,9.315e-05,2]
[422849370,1779522652000,-516.78,9.315e-05,2]
[422849371,1779522652000,-500.0,9.315e-05,2]
[422849363,1779522652000,-1317.26,9.315e-05,2]
[422849365,1779522652000,-500.0,9.315e-05,2]
[422849373,1779522652000,-1342.2,9.315e-05,2]
[422849379,1779522652000,-5006.38,9.315e-05,2]
[422849380,1779522652000,-500.0,9.315e-05,2]
[422849387,1779522652000,-919.44,9.315e-05,2]
[422849390,1779522652000,-500.0,9.315e-05,2]
[422849411,1779522652000,-1889.65,9.315e-05,2]
[422849417,1779522652000,-500.0,9.315e-05,2]
[422849424,1779522652000,-4472.53,9.315e-05,2]
[422849369,1779522652000,-500.0,9.315e-05,2]
[422849459,1779522652000,-241.88591984,9.321e-05,2]
[422849419,1779522652000,-836.05,9.315e-05,2]
[422849422,1779522652000,-11343.66,9.315e-05,2]
[422849416,1779522652000,-3408.86,9.315e-05,2]
[422849442,1779522652000,-698.28,9.315e-05,2]
[422849441,1779522652000,-2034.71,9.315e-05,2]
[422849446,1779522652000,-53596.31,9.315e-05,2]
[422849452,1779522652000,-4349.05,9.315e-05,2]
[422849429,1779522652000,-4054.65,9.315e-05,2]
[422849445,1779522652000,-500.0,9.315e-05,2]
[422849448,1779522652000,-3345.98,9.315e-05,2]
[422849458,1779522652000,-500.0,9.315e-05,2]
[422849420,1779522652000,-500.0,9.315e-05,2]
[422849421,1779522652000,-500.0,9.315e-05,2]
[422849428,1779522652000,-8299.03,9.315e-05,2]
[422849406,1779522652000,-3803.04,9.315e-05,2]
[422849456,1779522652000,-2740.95,9.315e-05,2]
[422849402,1779522652000,-480.44968015,9.315e-05,2]
[422849404,1779522652000,-500.0,9.315e-05,2]
[422849410,1779522652000,-500.0,9.315e-05,2]
[422849432,1779522652000,-2218.95,9.315e-05,2]
[422849443,1779522652000,-8529.45,9.315e-05,2]
[422849465,1779522652000,-1309.982153,9.358e-05,2]
[422849399,1779522652000,-3632.74,9.315e-05,2]
[422849408,1779522652000,-3777.66,9.315e-05,2]
[422849409,1779522652000,-2296.31,9.315e-05,2]
[422849436,1779522652000,-500.0,9.315e-05,2]
[422849449,1779522652000,-500.0,9.315e-05,2]
[422849466,1779522652000,-1230.671855,9.358e-05,2]
[422849470,1779522652000,-294.254154,9.404e-05,2]
[422849389,1779522652000,-642.13,9.315e-05,2]
[422849462,1779522652000,-625.602861,9.358e-05,2]
[422849463,1779522652000,-332.108577,9.358e-05,2]
[422849386,1779522652000,-500.0,9.315e-05,2]
[422849453,1779522652000,-500.0,9.315e-05,2]
[422849455,1779522652000,-1491.3,9.315e-05,2]
[422849468,1779522652000,-460.349275,9.358e-05,2]
[422849388,1779522652000,-500.0,9.315e-05,2]
[422849391,1779522652000,-647.49,9.315e-05,2]
[422849400,1779522652000,-11669.11,9.315e-05,2]
[422849433,1779522652000,-500.0,9.315e-05,2]
[422849460,1779522652000,-474.57932805,9.342e-05,2]
[422849471,1779522652000,-1153.926958,9.404e-05,2]
[422849475,1779522652000,-309.37679733,9.457e-05,30]
[422849476,1779522652000,-309.37679733,9.473e-05,30]
[422849384,1779522652000,-1906.95,9.315e-05,2]
[422849425,1779522652000,-500.0,9.315e-05,2]
[422849440,1779522652000,-3166.04,9.315e-05,2]
[422849426,1779522652000,-500.0,9.315e-05,2]
[422849418,1779522652000,-894.62,9.315e-05,2]
[422849413,1779522652000,-7788.78,9.315e-05,2]
[422849457,1779522652000,-891.69,9.315e-05,2]
[422849439,1779522652000,-560.81,9.315e-05,2]
[422849434,1779522652000,-500.0,9.315e-05,2]
[422849435,1779522652000,-1573.6,9.315e-05,2]
[422849472,1779522652000,-1856.16078399,9.424e-05,30]
[422849467,1779522652000,-393.128924,9.358e-05,2]
[422849464,1779522652000,-1864.707029,9.358e-05,2]
[422849444,1779522652000,-500.0,9.315e-05,2]
[422849437,1779522652000,-4331.31,9.315e-05,2]
[422849397,1779522652000,-1298.03,9.315e-05,2]
[422849582,1779522653000,-603.47,9.589e-05,2]
[422849572,1779522653000,-700.31,9.589e-05,2]
[422849549,1779522653000,-500.0,9.589e-05,2]
[422849535,1779522653000,-684.52,9.589e-05,2]
[422849591,1779522653000,-532.29,9.589e-05,2]
[422849512,1779522653000,-531.93,9.589e-05,2]
[422849503,1779522653000,-521.99,9.589e-05,2]
[422849498,1779522653000,-500.0,9.589e-05,2]
[422849487,1779522653000,-2290.7710297,9.554e-05,2]
[422849486,1779522653000,-4778.019883,9.544e-05,2]
[422849517,1779522653000,-500.0,9.589e-05,2]
[422849495,1779522653000,-882.1112,9.589e-05,2]
[422849548,1779522653000,-500.0,9.589e-05,2]
[422849521,1779522653000,-500.0,9.589e-05,2]
[422849533,1779522653000,-500.0,9.589e-05,2]
[422849538,1779522653000,-500.0,9.589e-05,2]
[422849545,1779522653000,-500.0,9.589e-05,2]
[422849550,1779522653000,-930.87,9.589e-05,2]
[422849564,1779522653000,-553.08,9.589e-05,2]
[422849589,1779522653000,-500.0,9.589e-05,2]
[422849491,1779522653000,-309.37679733,9.588e-05,30]
[422849502,1779522653000,-1669.62,9.589e-05,2]
[422849557,1779522653000,-500.0,9.589e-05,2]
[422849562,1779522653000,-1044.87,9.589e-05,2]
[422849561,1779522653000,-3771.01,9.589e-05,2]
[422849516,1779522653000,-500.0,9.589e-05,2]
[422849534,1779522653000,-1479.12,9.589e-05,2]
[422849553,1779522653000,-500.0,9.589e-05,2]
[422849573,1779522653000,-500.0,9.589e-05,2]
[422849588,1779522653000,-1062.93,9.589e-05,2]
[422849492,1779522653000,-934.38,9.589e-05,2]
[422849488,1779522653000,-309.37679733,9.555e-05,30]
[422849508,1779522653000,-500.0,9.589e-05,2]
[422849518,1779522653000,-1237.95,9.589e-05,2]
[422849529,1779522653000,-500.0,9.589e-05,2]
[422849523,1779522653000,-551.16,9.589e-05,2]
[422849536,1779522653000,-511.26,9.589e-05,2]
[422849539,1779522653000,-500.0,9.589e-05,2]
[422849571,1779522653000,-500.0,9.589e-05,2]
[422849513,1779522653000,-500.0,9.589e-05,2]
[422849514,1779522653000,-1159.16,9.589e-05,2]
[422849519,1779522653000,-500.0,9.589e-05,2]
[422849525,1779522653000,-670.18,9.589e-05,2]
[422849559,1779522653000,-500.0,9.589e-05,2]
[422849570,1779522653000,-500.0,9.589e-05,2]
[422849578,1779522653000,-936.85,9.589e-05,2]
[422849580,1779522653000,-500.0,9.589e-05,2]
[422849583,1779522653000,-549.99,9.589e-05,2]
[422849485,1779522653000,-3719.334961,9.544e-05,2]
[422849524,1779522653000,-548.99995317,9.589e-05,2]
[422849541,1779522653000,-1397.34,9.589e-05,2]
[422849551,1779522653000,-3836.07,9.589e-05,2]
[422849555,1779522653000,-500.0,9.589e-05,2]
[422849569,1779522653000,-583.52,9.589e-05,2]
[422849526,1779522653000,-1659.56,9.589e-05,2]
[422849590,1779522653000,-500.0,9.589e-05,2]
[422849478,1779522653000,-3842.001018,9.496e-05,2]
[422849499,1779522653000,-546.66,9.589e-05,2]
[422849540,1779522653000,-500.0,9.589e-05,2]
[422849542,1779522653000,-924.25,9.589e-05,2]
[422849581,1779522653000,-903.24,9.589e-05,2]
[422849480,1779522653000,-14022.64867,9.5e-05,2]
[422849481,1779522653000,-1613.0,9.505e-05,2]
[422849506,1779522653000,-500.0,9.589e-05,2]
[422849515,1779522653000,-500.0,9.589e-05,2]
[422849532,1779522653000,-1624.28,9.589e-05,2]
[422849537,1779522653000,-1188.89,9.589e-05,2]
[422849544,1779522653000,-500.0,9.589e-05,2]